Cogmind - Beta 16 @@@ ROGUE MODE // 2025.12.19 @ 14:00:14 Player: PE-P51 Result: Self-destructed Performance ------------- Evolutions (5) 2500 Regions Visited (12) 2400 Robots Destroyed (94) 470 Value Destroyed (2815) 2815 Prototype IDs (40) 800 Alien Tech Used (0) 0 Bonus (1861) 1861 TOTAL SCORE: 10846 Bonus ------- High Alert Combat Kills 40 Follower Combat Kills 1360 Registered with UFD 300 Met Optimus in HQ 500 Met Data Miner 300 Friendly Fire -639 Cogmind --------- Core Integrity 745/1000 Matter 250/300 Energy 124/150 System Corruption 0% Temperature Cool (0) Movement Flying (105) Ox1 Location -5/Extension Parts ------- > --- POWER (2) -------- Light Angular Momentum Engine > --- PROPULSION (5) --- Improved VTOL Module > --- UTILITY (8) ------ Medium Storage Unit Gravity Neutralizer Improved Signal Interpreter Advanced Terrain Scanner Armor Integrity Analyzer Advanced Hacking Suite Advanced Hacking Suite > --- WEAPON (2) ------- (None) > --- INVENTORY (10) --- Experimental Cooling System Improved Transmission Jammer Improved Reaction Control System Enhanced Scrap Shield Experimental Thermic Cannon Long-range Missile Launcher Thermoblaster CPS Tube (2) Dual-blade Saw Peak State ------------ > --- POWER ------------ Micro Fission Core Micro Fission Core > --- PROPULSION ------- Cooled Cesium-ion Thruster Flightbrick > --- UTILITY ---------- Experimental Cooling System Medium Storage Unit Advanced Weight Redist. System Improved Sensor Array Improved Signal Interpreter Improved Terrain Scanner Advanced Terrain Scan Processor Graphene Brace Hacking Suite Hacking Suite Improved Hacking Suite > --- WEAPON ----------- Experimental Thermic Cannon Improved Remote Datajack > --- INVENTORY -------- Improved VTOL Module Precision Energy Filter Improved Transmission Jammer Improved Reaction Control System Phase Shifter Enhanced Scrap Shield Long-range Missile Launcher Thermoblaster Dual-blade Saw [Rating: 117] Favorites ----------- Power Light Fission Core Engine Light Ion Engine Power Core Light Fission Core Reactor Light Particle Reactor Propulsion Flightbrick Treads Light Treads Leg Aluminum Leg Wheel Subdweller Monowheel Flight Unit Flightbrick Utility Hacking Suite Device Advanced Weight Redist. System Storage Huge Storage Unit Processor Enhanced Optical Array Hackware Hacking Suite Protection Makeshift Light Armor Plating Weapon Subdweller Beam Cannon Energy Gun EM Pulse Gun Energy Cannon Subdweller Beam Cannon Ballistic Gun Subdweller Machine Gun Ballistic Cannon Gauss Cannon Launcher Grenade Launcher Special Weapon Junk Cannon Slashing Weapon Dual-blade Saw Special Melee Weapon Improved Datajack Build | -11 -10 -10 -9 -6 -6 -6 -6 -6 -6 -5 -5 -5 ------- Run | Yrd Mat Sub Scr Fac Was Fac Low Low Dat Pro Fac Ext Slots Evolved 10 | . . . . 8 . . . . . . 2 . Power 1 | . . . . . . . . . . . 1 . Propulsion 3 | . . . . 2 . . . . . . 1 . Utility 6 | . . . . 6 . . . . . . . . Weapon . | . . . . . . . . . . . . . Parts Attached 128 | . 3 35 7 23 9 11 1 . . 5 30 4 Power 21 | . . 9 1 3 1 1 . . . . 5 1 Engine 13 | . . 9 1 1 . . . . . . 1 1 Core 6 | . . . . 2 . 1 . . . . 3 . Reactor 2 | . . . . . 1 . . . . . 1 . Propulsion 22 | . 2 11 3 1 . . . . . . 5 . Treads 4 | . 2 1 1 . . . . . . . . . Leg . | . . . . . . . . . . . . . Wheel 12 | . . 10 2 . . . . . . . . . Hover . | . . . . . . . . . . . . . Flight 6 | . . . . 1 . . . . . . 5 . Utility 50 | . 1 3 1 9 6 7 1 . . 3 17 2 Device 25 | . . 1 . 4 2 4 . . . 2 11 1 Storage 4 | . 1 . 1 1 . . . . . . 1 . Processor 8 | . . . . 3 . 2 1 . . . 1 1 Hackware 6 | . . . . . 2 1 . . . . 3 . Protection 7 | . . 2 . 1 2 . . . . 1 1 . Artifact . | . . . . . . . . . . . . . Weapon 35 | . . 12 2 10 2 3 . . . 2 3 1 Energy Gun 2 | . . . . 1 . . . . . 1 . . Energy Cannon 4 | . . 3 . . . 1 . . . . . . Ballistic Gun 11 | . . 7 1 1 . 1 . . . . 1 . Ballistic Cannon 2 | . . 1 . 1 . . . . . . . . Launcher 3 | . . 1 . . . . . . . 1 . 1 Special Weapon 3 | . . . 1 1 . . . . . . 1 . Impact Weapon . | . . . . . . . . . . . . . Slashing Weapon 8 | . . . . 5 2 . . . . . 1 . Piercing Weapon . | . . . . . . . . . . . . . Special Melee Weapon 2 | . . . . 1 . 1 . . . . . . Unidentified Prototypes 6 | . . . 1 . . 2 . . . . 3 . Corrupted Parts 3 | . . . . 1 . 2 . . . . . . System Corruption 16 | . . . . 7 . 9 . . . . . . Parts Lost 25 | . . 10 . 6 . . . . . . 5 4 Power 6 | . . 3 . 1 . . . . . . 1 1 Propulsion 8 | . . 3 . . . . . . . . 2 3 Utility 5 | . . 1 . 3 . . . . . . 1 . Weapon 6 | . . 3 . 2 . . . . . . 1 . Highest Loss Streak 3 | . . 3 . 2 . . . . . . 1 3 To Critical Strikes 1 | . . 1 . . . . . . . . . . Average Backups 11 | . 6 16 13 5 10 9 9 9 9 8 8 9 Power 2 | . 2 5 2 . . 1 . . . . . . Propulsion 1 | . 2 2 1 . 1 1 1 1 1 1 . . Utility 2 | . . 1 3 . 2 1 2 3 3 3 4 4 Weapon 4 | . 1 6 4 3 5 5 3 3 3 3 3 4 Tool/Special . | . . . . . . . . . . . . . Unused Backups 31 | . 4 7 13 3 . 1 1 . . . 1 1 Power 4 | . . . 4 . . . . . . . . . Propulsion 7 | . 4 . . 1 . 1 1 . . . . . Utility 10 | . . 3 5 . . . . . . . 1 1 Weapon 8 | . . 4 3 1 . . . . . . . . Tool/Special 2 | . . . 1 1 . . . . . . . . Average Slot Usage (%) 85 | . 98 97 93 56 59 72 74 77 74 77 81 82 Engine 7 | . 14 13 14 . . . . . . . . 4 Core 2 | . . . . 4 1 4 5 5 5 5 8 4 Treads 4 | . 24 8 7 . . . . . . . . . Wheel 10 | . . 18 19 . . . . . . . . . Flight 3 | . . . . 4 5 5 5 5 5 5 13 19 Device 9 | . . . . 14 13 21 22 21 22 22 21 17 Storage 9 | . 26 14 14 2 5 5 5 5 5 5 5 5 Processor 5 | . . . . 12 5 8 13 16 16 16 9 5 Hackware 5 | . . . . . 10 13 16 16 16 16 14 11 Protection 7 | . . 12 14 4 2 . . . . . . 3 Energy Cannon 6 | . . 7 11 . . . 5 4 . 5 3 . Ballistic Gun 7 | . 14 17 8 1 . . . . . . . . Peak Build Rating 117 | . 7 22 32 81 87 104 101 102 104 109 117 75 Average Rating 52 | . 6 16 22 75 80 91 98 100 94 100 100 67 On Entrance 61 | 6 6 7 20 32 66 83 104 101 101 104 99 71 Avg Prop Armor Cover (%) 9 | . . 9 10 28 . . . . . . . . Naked Turns . | . . . . . . . . . . . . . Heaviest Build 106 | 12 92 105 106 71 41 40 34 33 35 33 40 32 Greatest Support 40 | 20 40 40 28 33 33 33 33 33 33 33 39 33 Greatest Overweight (x) 10 | . 2 10 10 2 1 2 1 . 1 . 1 1 Average Overweight (x) 1 | . 1 3 5 . . . . . . . . . Largest Inventory Capacity 25 | . 25 25 25 20 10 10 10 10 10 10 10 10 Average Capacity 17 | . 23 25 22 7 10 10 10 10 10 10 10 10 Most Carried 25 | . 7 25 24 20 10 10 10 10 10 10 10 10 Average Carried 14 | . 6 18 18 6 9 9 9 9 10 9 9 9 Final Capacity 25 | 8 25 25 20 10 10 10 10 10 10 10 10 10 Final Carried 24 | 6 7 24 20 10 10 9 10 10 10 10 10 10 Scrap Suit Usage (%) 7 | . . . . 97 . . . . . . . . Parts Cannibalized 2 | . . . . 2 . . . . . . . . Class Distribution -------------------- 38% | Mutant 24% | Hacker-Scout 16% | Derelict-Mutant 9% | Hacker-Mutant 4% | Scout 3% | Hacker-Sprinter Dominant Class ---------------- Mutant | -10/Materials Mutant | -10/Subcaves Derelict-Mutant | -9/Scraptown Scout | -6/Factory Hacker-Mutant | -6/Waste Hacker-Mutant | -6/Factory Hacker-Scout | -6/Lower Caves Hacker-Scout | -6/Lower Caves Hacker-Scout | -6/Data Miner Hacker-Scout | -5/Proximity Caves Hacker-Scout | -5/Factory Hacker-Sprinter | -5/Extension Resources | -11 -10 -10 -9 -6 -6 -6 -6 -6 -6 -5 -5 -5 ----------- Run | Yrd Mat Sub Scr Fac Was Fac Low Low Dat Pro Fac Ext Matter Collected 3496 | 200 69 1010 60 533 175 277 106 155 . 177 684 50 Remotely . | . . . . . . . . . . . . . Salvage Created 4022 | . 218 797 . 692 . 334 309 132 . 217 1191 132 Parts 164 | . 13 48 . 37 . 15 4 6 . 1 37 3 Haulers Intercepted 7 | . . . . 1 . 2 . . . . 4 . Recyclers Shooed 1 | . . . . 1 . . . . . . . . Parts Field Recycled . | . . . . . . . . . . . . . Retrieved Matter . | . . . . . . . . . . . . . Parts Self-Destructed 46 | . . 25 . . . . 7 5 . 9 . . Prevented . | . . . . . . . . . . . . . Parts Restored . | . . . . . . . . . . . . . Kills | -11 -10 -10 -9 -6 -6 -6 -6 -6 -6 -5 -5 -5 ------- Run | Yrd Mat Sub Scr Fac Was Fac Low Low Dat Pro Fac Ext Combat Hostiles Destroyed 59 | . 5 20 . 8 . 2 4 5 . 3 12 . Melee 1 | . . . . 1 . . . . . . . . Guns 16 | . 5 11 . . . . . . . . . . Cannons 18 | . . 9 . 1 . 2 1 . . 1 4 . AOE 19 | . . . . 6 . . . 5 . . 8 . Classes Destroyed 16 | . 1 3 . 8 . 2 1 . . 1 . . Worker 5 | . . . . 2 . 1 . . . . 2 . Builder 2 | . . . . 2 . . . . . . . . Tunneler 4 | . . . . . . 1 . . . . 3 . Hauler 7 | . . . . 1 . 2 . . . . 4 . Recycler 5 | . . . . 2 . . . . . . 2 1 Operator 2 | . . . . 1 . . . . . . . 1 Watcher 7 | . . . . 2 . . . . . . 5 . Swarmer 20 | . . 2 . 4 . . . 5 . . 9 . Saboteur 1 | . . . . 1 . . . . . . . . Grunt 10 | . 5 . . . . 1 3 . . . 1 . Duelist 2 | . . . . . . . . . . 2 . . Sentry 3 | . . 1 . . . . 1 . . 1 . . Programmer 5 | . . . . 3 . . . . . . 2 . Heavy 1 | . . . . . . 1 . . . . . . Subdweller 17 | . . 17 . . . . . . . . . . Thug 2 | . . . . . . . . 2 . . . . Savage 1 | . . . . . . . 1 . . . . . Best Kill Streak 10 | . 3 2 . 5 . 1 2 3 . 1 10 1 Combat Bots Only 8 | . 3 2 . 5 . 1 2 3 . 1 8 . Max Kills in Single Turn 3 | . 1 1 . 2 . 1 2 2 . 1 3 1 Gunslinging . | . . . . . . . . . . . . . Exploded 2 | . . . . 2 . . . 2 . . 2 . Melee 1 | . . . . 1 . . . . . . . . Uniques/NPCs Destroyed . | . . . . . . . . . . . . . Combat | -11 -10 -10 -9 -6 -6 -6 -6 -6 -6 -5 -5 -5 -------- Run | Yrd Mat Sub Scr Fac Was Fac Low Low Dat Pro Fac Ext Hostile Shots Fired 623 | . 18 146 . 310 . 20 11 15 . 6 79 18 Missed 260 | . 6 45 . 141 . 8 7 7 . 4 38 4 Hits 363 | . 12 101 . 169 . 12 4 8 . 2 41 14 Melee 1 | . . . . 1 . . . . . . . . Projectile 362 | . 12 101 . 168 . 12 4 8 . 2 41 14 Critical Strikes 12 | . . 3 . 7 . 1 . . . . . 1 Part Disruptions 1 | . . . . 1 . . . . . . . . Damage Taken 6101 | . 130 1768 . 2628 . 235 41 117 . 38 914 230 Core 723 | . 11 177 . 215 . 60 5 . . . 219 36 Absorbed by Shields . | . . . . . . . . . . . . . Redirected to Shielding 28 | . . . . . . . . . . . 15 13 Regen/Repaired (Parts) 212 | . . . . 20 116 17 . . . . 59 . Core Remaining (%) 63 | 100 . . 24 . . . . . . 67 . . Volleys Fired 389 | . 13 158 . 24 . 17 15 7 . 36 117 2 Largest 2 | . 2 2 . 2 . 1 1 1 . 1 1 1 Hottest 260 | . 60 160 . 64 . 120 120 120 . 260 120 43 Shots Fired 518 | . 26 264 . 25 . 16 17 9 . 41 118 2 Gun 239 | . 26 204 . 9 . . . . . . . . Cannon 244 | . . 54 . 5 . 15 17 5 . 40 108 . Launcher 33 | . . 6 . 11 . 1 . 4 . 1 8 2 Special 2 | . . . . . . . . . . . 2 . Kinetic 231 | . 13 209 . 9 . . . . . . . . Thermal 238 | . . 47 . 5 . 15 17 5 . 41 108 . Explosive 32 | . . 6 . 11 . 1 . 4 . . 8 2 Electromagnetic 15 | . 13 2 . . . . . . . . . . Robot Hit Streak 15 | . 8 15 . 12 . 5 3 3 . 8 9 . Robot Miss Streak 4 | . 1 3 . 3 . 4 1 2 . 2 4 . Penetration Max . | . . . . . . . . . . . . . Secondary Targets . | . . . . . . . . . . . . . Shots Hit Robots 255 | . 18 103 . 28 . 23 12 4 . 14 48 5 Core Hits 130 | . 7 34 . 19 . 10 6 14 . 3 34 3 Critical Kills 1 | . . 1 . . . . . . . . . . Critical Parts Destroyed . | . . . . . . . . . . . . . Critical Strikes 43 | . . 1 . . . 9 7 1 . 4 19 2 Burn 33 | . . . . . . 4 7 1 . 4 17 . Destroy 1 | . . 1 . . . . . . . . . . Sever 9 | . . . . . . 5 . . . . 2 2 Melee Attacks 126 | . . . . 28 . 43 . . . . 45 10 Thermal 1 | . . . . 1 . . . . . . . . Impact . | . . . . . . . . . . . . . Slashing 124 | . . . . 26 . 43 . . . . 45 10 Piercing . | . . . . . . . . . . . . . Sneak Attacks 20 | . . . . 10 . 4 . . . . 5 1 Combat Hostiles . | . . . . . . . . . . . . . Follow-up Attacks . | . . . . . . . . . . . . . Damage Inflicted 8578 | . 239 1965 . 1567 . 858 453 541 . 458 2324 173 Guns 1544 | . 239 1256 . 49 . . . . . . . . Cannons 3379 | . . 709 . 31 . 322 453 68 . 458 1338 . Explosions 1583 | . . . . 588 . 18 . 473 . . 504 . Melee 2072 | . . . . 899 . 518 . . . . 482 173 Ramming . | . . . . . . . . . . . . . Kinetic 1502 | . 99 1340 . 63 . . . . . . . . Thermal 3281 | . . 609 . 17 . 322 453 68 . 458 1354 . Explosive 1567 | . . . . 588 . 18 . 473 . . 488 . Electromagnetic 156 | . 140 16 . . . . . . . . . . Impact . | . . . . . . . . . . . . . Slashing 2072 | . . . . 899 . 518 . . . . 482 173 Piercing . | . . . . . . . . . . . . . Highest Corruption 27 | . . . . 18 18 27 27 27 27 27 2 2 Average Corruption 20 | . . . . 11 18 19 27 27 27 27 1 1 Corruption Purged 3 | . . . . . . . . . . . 1 2 Corruption Blocked . | . . . . . . . . . . . . . Effects 220 | . . . . 15 22 39 51 38 3 46 6 . Message Errors 58 | . . . . 1 1 12 18 10 1 12 3 . Matter Fused 46 | . . . . 3 5 8 12 9 1 7 1 . Heat Flow Errors 30 | . . . . 1 5 6 7 3 . 7 1 . Energy Discharges 22 | . . . . 1 2 6 4 6 . 3 . . Parts Rejected 3 | . . . . 2 . . . 1 . . . . Parts Fused 1 | . . . . . . . 1 . . . . . Data Loss (minor) 23 | . . . . 2 4 3 2 5 1 6 . . Data Loss (major) 7 | . . . . . 1 1 3 1 . 1 . . Misfires 12 | . . . . . . . 3 2 . 6 1 . Alerts 5 | . . . . . 2 1 . . . 2 . . Misdirections 10 | . . . . 5 2 1 . 1 . 1 . . Weapon Failures 3 | . . . . . . 1 1 . . 1 . . Overload Shots . | . . . . . . . . . . . . . Overflow Damage 483 | . . . . 230 . 27 . 13 . 60 136 17 Projectiles 67 | . . . . . . . . . . 60 7 . Explosions 62 | . . . . 25 . . . 13 . . 24 . Melee 354 | . . . . 205 . 27 . . . . 105 17 Knockbacks 3 | . . 3 . . . . . . . . . . Impact . | . . . . . . . . . . . . . Kinetic 3 | . . 3 . . . . . . . . . . Secondary . | . . . . . . . . . . . . . Self-Inflicted Damage 106 | . . 10 . . . . . . . . 96 . Shots 3 | . . 1 . . . . . . . . 2 . Rammed . | . . . . . . . . . . . . . Targets Rammed . | . . . . . . . . . . . . . Kicked . | . . . . . . . . . . . . . Crushed . | . . . . . . . . . . . . . Highest Temperature 362 | . 12 202 . 242 278 362 242 173 . 283 264 . Average Temperature 74 | . 8 40 . 71 107 98 62 60 . 118 65 . Received Heat Transfer 1011 | . 72 393 . 393 . 66 15 . . 18 45 9 Effects 3 | . . . . . . . . . . . 3 . Interference 3 | . . . . . . . . . . . 3 . Siege Activations . | . . . . . . . . . . . . . Martial Activations . | . . . . . . . . . . . . . Shielding Activations . | . . . . . . . . . . . . . Robots Disrupted . | . . . . . . . . . . . . . Combat Hostiles . | . . . . . . . . . . . . . Robots Corrupted . | . . . . . . . . . . . . . Combat Hostiles . | . . . . . . . . . . . . . Parts Fried 1 | . 1 . . . . . . . . . . . Impact Corruptions . | . . . . . . . . . . . . . Robots Melted 10 | . . . . . . . 4 . . 2 4 . Combat Hostiles 5 | . . . . . . . 3 . . 2 . . Parts Melted 38 | . . 5 . . . 2 5 . . 8 18 . Heat Transferred 12114 | . . 814 . 50 . 1360 2160 320 . 1680 5730 . Parts Sabotaged 1 | . . . . 1 . . . . . . . . Parts Stolen . | . . . . . . . . . . . . . Parts Stripped . | . . . . . . . . . . . . . Power Chain Reactions . | . . . . . . . . . . . . . Alert | -11 -10 -10 -9 -6 -6 -6 -6 -6 -6 -5 -5 -5 ------- Run | Yrd Mat Sub Scr Fac Was Fac Low Low Dat Pro Fac Ext Maximum Alert Level 3 | . . . . 2 . 3 . . . . 2 1 Low Security (%) 39 | . 100 . . 86 100 6 . . . . 11 . Level 1 41 | . . . . 7 . 17 . . . . 77 100 Level 2 16 | . . . . 5 . 61 . . . . 11 . Level 3 2 | . . . . . . 14 . . . . . . Level 4 . | . . . . . . . . . . . . . Level 5 . | . . . . . . . . . . . . . High Security . | . . . . . . . . . . . . . Max Security . | . . . . . . . . . . . . . Peak Influence 1022 | . 136 . . 419 152 1022 . . . . 682 333 Initial 333 | . . . . . 137 . . . . . . 333 Average 268 | . 55 . . 117 70 493 . . . . 321 299 Influence Increases 4926 | . 166 165 . 926 48 1500 252 186 . 63 1497 123 Destroy 0b10 Robot/C 1620 | . 100 60 . 180 . 580 140 140 . 60 320 40 Destroy 0b10 Robot/NC 180 | . . . . 50 . 35 . . . . 85 10 Destroy Leader 342 | . 20 . . 56 . 146 20 20 . . 70 10 Allied During Kill 817 | . . . . . . 672 62 26 . 3 42 12 Trap Triggered on 0b10 10 | . . . . 10 . . . . . . . . Successful Hack 133 | . . . . 20 . 42 . . . . 58 13 Select Force Hacks 30 | . . . . . . . . . . . 30 . Disable Machine 180 | . . . . 105 . . . . . . 75 . Destroy Structure 429 | . 1 . . 70 33 25 . . . . 262 38 Partial Spotted 105 | . . . . 15 15 . . . . . 75 . Lose Combat Pursuer 1080 | . 45 105 . 420 . . 30 . . . 480 . Influence Decreases 4660 | . 80 216 35 532 442 498 812 435 193 63 815 539 Entered New Map 1333 | . . 42 35 . 257 . 372 85 193 . . 349 Time Decay 2774 | . 80 161 . 402 185 398 440 350 . 63 585 110 Lost Part 163 | . . 13 . 60 . . . . . . 50 40 Lost Ally 390 | . . . . 70 . 100 . . . . 180 40 Squads Dispatched 31 | . 2 . . 6 . 6 . . . 2 13 2 Investigation 10 | . 2 . . . . 2 . . . . 5 1 Extermination 11 | . . . . 4 . 2 . . . . 5 . Reinforcement 8 | . . . . 2 . 2 . . . . 3 1 Assault 2 | . . . . . . . . . . 2 . . Garrison . | . . . . . . . . . . . . . Intercept . | . . . . . . . . . . . . . Searches Triggered . | . . . . . . . . . . . . . Data Miner Redirects 3 | . . . . . . . . . . . 3 . Construction Impeded 1 | . . . . . . . . . . . 1 . Haulers Reinforced 2 | . . . . . . 1 . . . . 1 . Active Scanning Responses . | . . . . . . . . . . . . . Cargo Convoy Interrupts 1 | . . . . 1 . . . . . . . . Stealth | -11 -10 -10 -9 -6 -6 -6 -6 -6 -6 -5 -5 -5 --------- Run | Yrd Mat Sub Scr Fac Was Fac Low Low Dat Pro Fac Ext Distress Signals 15 | . 2 . . 6 . 4 . . . . 3 . Communications Jammed . | . . . . . . . . . . . . . Distress Signals . | . . . . . . . . . . . . . Times Spotted 217 | . 7 29 . 55 6 22 8 7 . 11 67 5 Peak Tracking Total 16 | . 5 3 . 13 6 3 3 4 . 9 16 2 Tactical Retreats 39 | . 2 6 . 16 2 . 1 . . . 12 . Traps | -11 -10 -10 -9 -6 -6 -6 -6 -6 -6 -5 -5 -5 ------- Run | Yrd Mat Sub Scr Fac Was Fac Low Low Dat Pro Fac Ext Traps Triggered 5 | . . 2 . 1 . 1 . . . . 1 . Indirectly . | . . . . . . . . . . . . . Trap Hack Attempts . | . . . . . . . . . . . . . Triggered . | . . . . . . . . . . . . . Disarmed . | . . . . . . . . . . . . . Reprogrammed . | . . . . . . . . . . . . . Reused 1 | . . . . 1 . . . . . . . . Traps Extracted . | . . . . . . . . . . . . . Installed 1 | . . . . 1 . . . . . . . . Triggered 1 | . . . . 1 . . . . . . . . Most Traps Carried 3 | . . 1 3 3 . . . . . . . . Machines | -11 -10 -10 -9 -6 -6 -6 -6 -6 -6 -5 -5 -5 ---------- Run | Yrd Mat Sub Scr Fac Was Fac Low Low Dat Pro Fac Ext Machines Disabled 16 | . . 4 . 7 . . . . . . 5 . Max in Single Turn 2 | . . 2 . 2 . . . . . . 1 . Garrison Access 2 | . . . . . . . . . . . 2 . Machines Repaired . | . . . . . . . . . . . . . Machines Dismantled . | . . . . . . . . . . . . . Machines Sabotaged . | . . . . . . . . . . . . . Overloaded Fab Kills . | . . . . . . . . . . . . . Hacking | -11 -10 -10 -9 -6 -6 -6 -6 -6 -6 -5 -5 -5 --------- Run | Yrd Mat Sub Scr Fac Was Fac Low Low Dat Pro Fac Ext Machines Accessed 57 | . . 2 4 10 . 6 1 1 2 . 29 2 Terminals 22 | . . . . 4 . 2 . 1 . . 13 2 Fabricators 7 | . . . . 3 . . . . . . 4 . Repair Stations 7 | . . . . . . 2 . . . . 5 . Recycling Units 2 | . . . . 1 . . . . . . 1 . Scanalyzers 7 | . . . . 1 . 2 . . . . 4 . Garrison Access 3 | . . . . 1 . . . . . . 2 . Total Hacks 168 | . . 5 25 18 . 18 1 1 20 . 72 8 Successful 121 | . . 5 25 7 . 13 1 1 20 . 46 3 Failed 46 | . . . . 11 . 5 . . . . 25 5 Catastrophic 8 | . . . . 3 . 1 . . . . 4 . Database Lockouts 1 | . . . . . . . . . . . 1 . Manual 31 | . . . . 9 . 4 . . . . 16 2 Terminals 49 | . . . . 8 . 7 . 1 . . 25 8 Fabricators 17 | . . . . 5 . . . . . . 12 . Repair Stations 14 | . . . . . . 3 . . . . 11 . Recycling Units 2 | . . . . 1 . . . . . . 1 . Scanalyzers 28 | . . . . 1 . 8 . . . . 19 . Garrison Access 7 | . . . . 3 . . . . . . 4 . Terminal Hacks 70 | . . 5 25 1 . 5 1 1 20 . 9 3 Record 29 | . . 4 24 . . . . 1 . . . . Part Schematic 13 | . . . . . . . . . 11 . 1 1 Robot Schematic 6 | . . . . . . . . . 6 . . . Prototype ID Bank 3 | . . . . . . . . . 3 . . . Open Door 2 | . . . . . . . 1 . . . 1 . Branch Access Points 1 | . . . . 1 . . . . . . . . Terminal Index 2 | . . . . . . 1 . . . . . 1 Fabricator Index 2 | . . . . . . 1 . . . . 1 . Recycling Unit Index 1 | . . . . . . . . . . . 1 . Scanalyzer Index 2 | . . . . . . 1 . . . . 1 . Locate Traps 1 | . . . . . . . . . . . . 1 Dispatch Records 1 | . . . . . . 1 . . . . . . Transport Status 1 | . . . . . . 1 . . . . . . Recall Extermination 1 | . . . . . . . . . . . 1 . Registered Components 1 | . . . . . . . . . . . 1 . Registered Prototypes 1 | . . . . . . . . . . . 1 . Zone Layout 1 | . . . . . . . . . . . 1 . Proto ID Catalog 2 | . . 1 1 . . . . . . . . . Fabricator Hacks 8 | . . . . 2 . . . . . . 6 . Network Status 2 | . . . . 1 . . . . . . 1 . Load Schematic 2 | . . . . . . . . . . . 2 . Build 4 | . . . . 1 . . . . . . 3 . Repair Station Hacks 8 | . . . . . . 1 . . . . 7 . Scan Component 4 | . . . . . . 1 . . . . 3 . Repair 3 | . . . . . . . . . . . 3 . Refit 1 | . . . . . . . . . . . 1 . Recycling Unit Hacks 2 | . . . . 1 . . . . . . 1 . Retrieve Components 2 | . . . . 1 . . . . . . 1 . Scanalyzer 22 | . . . . . . 7 . . . . 15 . Insert Component 12 | . . . . . . 4 . . . . 8 . Analyze 9 | . . . . . . 3 . . . . 6 . Retrieve Study 1 | . . . . . . . . . . . 1 . Garrison Access Hacks 2 | . . . . . . . . . . . 2 . Seal Access 2 | . . . . . . . . . . . 2 . Unauthorized Hacks 9 | . . . . 3 . . . . . . 6 . Terminals 4 | . . . . 2 . . . . . . 2 . Assimilate 3 | . . . . 1 . . . . . . 2 . Operators 1 | . . . . 1 . . . . . . . . Fabricators 4 | . . . . 1 . . . . . . 3 . Liberate 3 | . . . . 1 . . . . . . 2 . Recompile 1 | . . . . . . . . . . . 1 . Repair Stations . | . . . . . . . . . . . . . Recycling Units . | . . . . . . . . . . . . . Scanalyzers 1 | . . . . . . . . . . . 1 . Extract 1 | . . . . . . . . . . . 1 . Garrison Access . | . . . . . . . . . . . . . Data Cores Recovered . | . . . . . . . . . . . . . Used . | . . . . . . . . . . . . . Hacking Detections 34 | . . . . 7 . 6 . 1 . . 18 2 Full Trace Events 6 | . . . . . . 2 . . . . 3 1 Feedback Events 1 | . . . . . . . . . . . 1 . Corruption 1 | . . . . . . . . . . . 1 . Feedback Blocked . | . . . . . . . . . . . . . Robot Schematics Acquired 6 | . . . . . . . . . 6 . . . Robots Built 8 | . . . . 3 . . . . . . 5 . Authchips . | . . . . . . . . . . . . . Time 387 | . . . . 134 . . . . . . 253 . Total Robot Build Rating 42 | . . . . 12 . . . . . . 30 . Part Schematics Acquired 25 | . . . . . . 1 . . 11 . 12 1 Parts Built 1 | . . . . . . . . . . . 1 . Authchips 1 | . . . . . . . . . . . 1 . Time 38 | . . . . . . . . . . . 38 . Total Part Build Rating 3 | . . . . . . . . . . . 3 . Part Studies Acquired 1 | . . . . . . . . . . . 1 . Parts Repaired 3 | . . . . . . . . . . . 3 . Time 212 | . . . . . . . . . . . 212 . Parts Recycled . | . . . . . . . . . . . . . Recycled Matter . | . . . . . . . . . . . . . Retrieved Matter . | . . . . . . . . . . . . . Retrieved Components 12 | . . . . 3 . . . . . . 9 . Parts Scanalyzed 7 | . . . . . . 3 . . . . 4 . Part Schematics Acquired 6 | . . . . . . 1 . . . . 5 . Parts Damaged 1 | . . . . . . 1 . . . . . . Bothacking | -11 -10 -10 -9 -6 -6 -6 -6 -6 -6 -5 -5 -5 ------------ Run | Yrd Mat Sub Scr Fac Was Fac Low Low Dat Pro Fac Ext Used RIF Installer . | . . . . . . . . . . . . . Robots Hacked 2 | . . . . 1 . . . . . . 1 . Non-combat 2 | . . . . 1 . . . . . . 1 . Combat . | . . . . . . . . . . . . . Robot Hacks Applied 2 | . . . . 1 . . . . . . 1 . find_chute 2 | . . . . 1 . . . . . . 1 . Relay Couplers Released 1 | . . . . . . . . . . . 1 . Machine Destruction 1 | . . . . . . . . . . . 1 . Fabnet Peak Effective % . | . . . . . . . . . . . . . Robots Rewired . | . . . . . . . . . . . . . Allies Hacked 6 | . . . . . . 2 . . . . 4 . Hacks Repelled 1 | . . . . . . . . . . . 1 . Allies | -11 -10 -10 -9 -6 -6 -6 -6 -6 -6 -5 -5 -5 -------- Run | Yrd Mat Sub Scr Fac Was Fac Low Low Dat Pro Fac Ext Total Allies 40 | . . . . 4 19 . . . . . 12 5 Largest Group 19 | . . . . 3 19 12 5 4 2 2 5 5 Highest-Rated Group 684 | . . . . 90 684 482 172 143 53 53 192 165 Highest-Rated Ally 54 | . . . . 30 50 50 46 46 27 28 54 39 Total Orders . | . . . . . . . . . . . . . Ally Attacks 491 | . . . . 8 94 251 24 8 . . 68 38 Total Damage 11128 | . . . . 238 4181 4292 603 157 . . 1198 459 Kills 58 | . . . . 1 13 30 3 2 . . 6 3 Allies Corrupted 4 | . . . . . . 2 . . . . 2 . Allies Melted . | . . . . . . . . . . . . . Intel | -11 -10 -10 -9 -6 -6 -6 -6 -6 -6 -5 -5 -5 ------- Run | Yrd Mat Sub Scr Fac Was Fac Low Low Dat Pro Fac Ext Active Infowar (turns) 8179 | . . . . 1340 468 959 1087 795 55 925 2321 229 Optics 5678 | . . . . 1340 468 959 1087 795 55 925 49 . Sensors 2684 | . . . . 1095 . . . . . . 1589 . Terrain 5838 | . . . . 23 468 775 1087 795 55 814 1592 229 Traps 2 | . . . . . . . . . . . 2 . Decoding 2666 | . . . . . . . 538 795 55 925 353 . Jamming 32 | . . . . . . . . . . . 32 . Robot Analysis Total . | . . . . . . . . . . . . . Derelict Logs Recovered 13 | . . 2 5 . . . 1 2 . 3 . . Drone Launches . | . . . . . . . . . . . . . Drone Recoveries . | . . . . . . . . . . . . . Decoded 0b10 Intel 24 | . . . . . . . . . . . 24 . Items 24 | . . . . . . . . . . . 24 . Exploration | -11 -10 -10 -9 -6 -6 -6 -6 -6 -6 -5 -5 -5 ------------- Run | Yrd Mat Sub Scr Fac Was Fac Low Low Dat Pro Fac Ext Turns Passed 18265 | . 267 5911 3767 1357 468 959 1087 795 55 925 2445 229 Spaces Moved 16123 | 1 77 3243 2138 2022 507 695 1033 999 102 873 4078 355 Core 10 | . . . . 9 . 1 . . . . . . Treads 109 | . 61 48 . . . . . . . . . . Legs 17 | 1 16 . . . . . . . . . . . Wheels 5344 | . . 3195 2138 11 . . . . . . . . Hover . | . . . . . . . . . . . . . Flight 10643 | . . . . 2002 507 694 1033 999 102 873 4078 355 Fastest Speed 24 | 120 120 129 115 40 40 40 40 40 40 40 24 27 Average Speed 80 | 120 278 152 173 41 54 49 40 40 42 40 31 32 Slowest Speed 560 | 120 320 560 230 150 80 150 80 40 80 40 107 105 Overloaded Moves 4 | . . . . . . . . . . . . 4 Propulsion Burnouts 1 | . . . . . . . . . . . . 1 Robots Hopped 88 | . . . . 38 . 1 1 . . 1 47 . Potential Cave-ins 2 | . . . . 2 . . . . . . . . Cave-ins Triggered 1 | . . . . 1 . . . . . . . . Exploration Rate (%) 62 | 2 17 98 89 37 96 21 93 98 80 91 68 24 Regions Visited 12 Branch Regions 7 Pre-discovered Areas 7 | . . 1 5 . . . 1 . . . . . Known Exits Taken 4 | . . . . . . 1 1 . . 1 1 . Unknown Exits Taken 6 | 1 1 1 1 . . . . 1 1 . . . Scrap Searched 32 | . . 15 6 . . . 6 4 . 1 . . Spaces Dug 99 | . . 2 . 11 . 5 . . . 10 70 1 Terrain Destroyed 382 | . . 40 . 103 . 10 4 26 . 31 134 34 Melee 19 | . . . . 6 . 3 . . . . 9 1 Projectile 118 | . . 9 . 4 . 4 4 3 . 26 68 . AOE 245 | . . 31 . 93 . 3 . 23 . 5 57 33 Terrain Rammed . | . . . . . . . . . . . . . Walls Destroyed . | . . . . . . . . . . . . . Machines Disabled . | . . . . . . . . . . . . . Actions | -11 -10 -10 -9 -6 -6 -6 -6 -6 -6 -5 -5 -5 --------- Run | Yrd Mat Sub Scr Fac Was Fac Low Low Dat Pro Fac Ext Total 20634 | . 105 3955 2204 2443 694 1198 1692 1386 113 1410 4990 444 Wait 3632 | . 8 464 16 324 172 397 637 375 10 486 680 63 Move 15942 | . 76 3242 2137 1947 506 692 1030 998 101 870 3988 355 Hop 81 | . . . . 36 . 1 1 . . 1 42 . Pick Up 88 | . 3 24 19 18 1 3 2 . . 2 16 . Fast Attach 55 | . 1 5 4 15 5 6 1 1 1 1 13 2 Attach 37 | . . 6 . 9 1 3 . 2 . 1 15 . Detach 16 | . . . . 1 . 1 2 2 . 1 8 1 Swap 121 | . 2 34 3 16 5 14 . 1 . 7 32 7 Drop 115 | . 2 21 25 23 4 6 4 . 1 5 20 4 Fire 389 | . 13 158 . 24 . 17 15 7 . 36 117 2 Melee 126 | . . . . 28 . 43 . . . . 45 10 Ram . | . . . . . . . . . . . . . Kick . | . . . . . . . . . . . . . Crush . | . . . . . . . . . . . . . Escape Stasis 29 | . . . . 1 . 15 . . . . 13 . Rewire 2 | . . 1 . . . . . . . . 1 . Trap 1 | . . . . 1 . . . . . . . . Miscellaneous . | . . . . . . . . . . . . . Route ------- -11/Scrapyard -10/Materials -10/Subcaves (discovered 5 exits: [*Mat x2] / [*Rec] / *Scr x2) -9/Scraptown (discovered 2 exits: *Fac x2) -6/Factory (discovered 5 exits: Fac x3 / *Low x2) -6/Waste -6/Factory (discovered 2 exits: Fac / *Low) -6/Lower Caves -6/Lower Caves (discovered 2 exits: *Fac / *Dat) -6/Data Miner -5/Proximity Caves -5/Factory (discovered 7 exits: *Fac x3 / *Upp x2 / *Ext x2) -5/Extension History --------- Turn | Location | Event 1 | -11/Scrapyard | Discovered new exit (range 0) 1 | -11/Scrapyard | Entered Materials 2 | -10/Materials | Met a group of wandering Federalists 255 | -10/Materials | Discovered new exit (range 5) 268 | -10/Materials | Entered Subcaves 269 | -10/Subcaves | Continued accompanying wandering Federalists (5) 269 | -10/Subcaves | Approached by a straggling Scientist 314 | -10/Subcaves | Build established: Mutant 477 | -10/Subcaves | Lost 3 parts (1n1u1w) 756 | -10/Subcaves | Learned Materials terminal intel 844 | -10/Subcaves | Disturbed a concealed Subdweller 923 | -10/Subcaves | A swath of the cavern ceiling suddenly collapsed 966 | -10/Subcaves | Shifting Twisted Machinery released Spk. Treads 973 | -10/Subcaves | Discovered new exit (range 15) 1050 | -10/Subcaves | Shifting Twisted Machinery released Sub. Shrapnel Launcher 1441 | -10/Subcaves | Ambushed by Subdweller buried in earth 1798 | -10/Subcaves | Build established: Derelict-Mutant 2067 | -10/Subcaves | Visited Clippyterm 2072 | -10/Subcaves | Learned location of Section 7 (-2) 2135 | -10/Subcaves | Disturbed a concealed Subdweller 2668 | -10/Subcaves | Build established: Mutant 3167 | -10/Subcaves | Core integrity fell below 50% 4139 | -10/Subcaves | Shifting Twisted Machinery released Sub. Monowheel 4172 | -10/Subcaves | Learned Materials security intel 4174 | -10/Subcaves | Shifting Twisted Machinery released Sub. Optics 4229 | -10/Subcaves | Shifting Twisted Machinery released Flamer 4233 | -10/Subcaves | Discovered new exit (range 11) 4252 | -10/Subcaves | Shifting Twisted Machinery released Mak. Light Armor Plating 4602 | -10/Subcaves | Visited 4L-MR0's lab 4620 | -10/Subcaves | Found Flightbrick 4665 | -10/Subcaves | Discovered new exit (range 16) 4965 | -10/Subcaves | Disturbed a concealed Subdweller 4982 | -10/Subcaves | Build established: Scavenger-Mutant 5325 | -10/Subcaves | Build established: Mutant 5414 | -10/Subcaves | A swath of the cavern ceiling suddenly collapsed 6179 | -10/Subcaves | Entered Scraptown 6278 | -9/Scraptown | Visited The Evicted 6306 | -9/Scraptown | Visited Cyclists 6345 | -9/Scraptown | Heard Great Nut preacher, LISTEN AND RECITE! 6483 | -9/Scraptown | Scanned Subdweller tech in exchange for log data 6490 | -9/Scraptown | Learned Factory terminal intel 6492 | -9/Scraptown | Learned location of Quarantine (-3) 6495 | -9/Scraptown | Learned Research emergency access door positions 6497 | -9/Scraptown | Learned location of Testing (-2) 6499 | -9/Scraptown | Learned Factory emergency access door positions 6707 | -9/Scraptown | Discovered new exit (range 11) 7087 | -9/Scraptown | Visited Red Mages 7134 | -9/Scraptown | Visited Spacefarers 7146 | -9/Scraptown | Build established: Derelict-Mutant 7173 | -9/Scraptown | Visited Cave Peace 7222 | -9/Scraptown | Visited Science Testing Area 7272 | -9/Scraptown | Visited UFD Registry 7272 | -9/Scraptown | Registered with UFD as "Macecycle" 8278 | -9/Scraptown | Visited CPS Storage 8427 | -9/Scraptown | Delivered Scrap Shield to a Scientist 8600 | -9/Scraptown | Visited Science Guys 8673 | -9/Scraptown | Visited Curators Association 8710 | -9/Scraptown | Visited Observation Area 8795 | -9/Scraptown | Visited Supply Room 8837 | -9/Scraptown | Visited DA-N13 Charitable Foundation 8844 | -9/Scraptown | Found DCF Scrap (27 items) 8902 | -9/Scraptown | Visited Abandonware Association 8917 | -9/Scraptown | Learned abandonware demo "REVENGE.EXE" 8956 | -9/Scraptown | Visited LU-1G1's Boring Crew 8991 | -9/Scraptown | Visited Scrapoid Pod Storage 9012 | -9/Scraptown | Visited Junk Cannon Lab 9025 | -9/Scraptown | Found Prototype Special Weapon 9025 | -9/Scraptown | Identified Junk Cannon 9063 | -9/Scraptown | Visited Cartography Club 9282 | -9/Scraptown | Learned location of Proximity Caves (-4) 9282 | -9/Scraptown | Learned 16 Materials zone layouts 9282 | -9/Scraptown | Learned 16 Research zone layouts 9282 | -9/Scraptown | Learned 4 Mines zone layouts 9282 | -9/Scraptown | Learned 8 Access zone layouts 9282 | -9/Scraptown | Learned 12 Lower Caves zone layouts 9282 | -9/Scraptown | Learned 20 Lower Caves zone layouts 9282 | -9/Scraptown | Learned 12 Proximity Caves zone layouts 9282 | -9/Scraptown | Learned 20 Proximity Caves zone layouts 9282 | -9/Scraptown | Learned 24 Proximity Caves zone layouts 9282 | -9/Scraptown | Learned Materials emergency access door positions 9282 | -9/Scraptown | Learned location of 3 exits from Factory 9282 | -9/Scraptown | Learned location of 2 exits from Proximity Caves 9282 | -9/Scraptown | Learned location of 3 exits from Proximity Caves 9331 | -9/Scraptown | Build established: Mutant 9637 | -9/Scraptown | Discovered new exit (range 3) 9732 | -9/Scraptown | Found Scrap Suit 9879 | -9/Scraptown | Met Optimus 9879 | -9/Scraptown | Accepted into 0bPrime 9946 | -9/Scraptown | Entered Factory 9946 | -6/Factory | Evolved 8 slots: Propulsion x2, Utility x6 9947 | -6/Factory | Identified exit to Lower Caves 9948 | -6/Factory | Identified exit to Factory 9950 | -6/Factory | Loaded intel: 26 terminal locations 9962 | -6/Factory | Attached Flightbrick, gained temporary slots: Utility x3 10433 | -6/Factory | Build established: Scout 10554 | -6/Factory | Spotted B-75 Beast 10573 | -6/Factory | Fabricated L-41 Fighter? 11024 | -6/Factory | Cargo convoy interrupted 11094 | -6/Factory | System corruption reached 10% 11268 | -6/Factory | Crushed by falling debris 11272 | -6/Factory | Found Prototype Energy Cannon 11303 | -6/Factory | Manually triggered Chute Trap 11303 | -6/Factory | Sucked down chute 11303 | -6/Factory | Entered Waste 11313 | -6/Waste | Spotted C-40 Crusher 11313 | -6/Waste | Spotted C-40 Crusher 11331 | -6/Waste | Spotted C-40 Crusher 11331 | -6/Waste | Spotted C-40 Crusher 11340 | -6/Waste | Spotted C-40 Crusher 11345 | -6/Waste | Spotted C-40 Crusher 11374 | -6/Waste | Warlord forces began an assault 11380 | -6/Waste | Allies destroyed C-40 Crusher 11387 | -6/Waste | Allies destroyed C-40 Crusher 11388 | -6/Waste | Allies destroyed C-40 Crusher 11520 | -6/Waste | Discovered new exit (range 22) 11654 | -6/Waste | Build established: Hacker-Mutant 11771 | -6/Waste | Entered Factory 11771 | -6/Factory | Accompanied by 12 allies 12019 | -6/Factory | Identified Exp. Thermic Cannon 12378 | -6/Factory | Discovered exit to Factory (range 15) 12520 | -6/Factory | Build established: Hacker-Scout 12549 | -6/Factory | Discovered exit to Lower Caves (range 21) 12588 | -6/Factory | Lost 3 allies 12730 | -6/Factory | Entered Lower Caves 12730 | -6/Lower Caves | Accompanied by 5 allies 12731 | -6/Lower Caves | Identified exit to Lower Caves 12732 | -6/Lower Caves | UFD Scientist delivered a prototype 12733 | -6/Lower Caves | Found Prototype Protection 12806 | -6/Lower Caves | Encountered a Warlord checkpoint 12817 | -6/Lower Caves | Learned location of Extension (-5) 13230 | -6/Lower Caves | Attracted the attention of an 0b10 checkpoint 13817 | -6/Lower Caves | Entered another Lower Caves area 13817 | -6/Lower Caves | Accompanied by 4 allies 13921 | -6/Lower Caves | Learned Factory non-interactive machine intel 14018 | -6/Lower Caves | Learned 8 Factory zone layouts 14069 | -6/Lower Caves | Discovered new exit (range 12) 14612 | -6/Lower Caves | Entered Data Miner 14612 | -6/Data Miner | Accompanied by 2 allies 14613 | -6/Data Miner | Discovered new exit (range 6) 14618 | -6/Data Miner | Met Data Miner 14639 | -6/Data Miner | Received God Mode back door access code from Data Miner 14667 | -6/Data Miner | Entered Proximity Caves 14667 | -5/Proximity Caves | Accompanied by 2 allies 14670 | -5/Proximity Caves | Learned Factory interactive machine intel 14733 | -5/Proximity Caves | Learned location of 1 exit from Upper Caves 14992 | -5/Proximity Caves | Attracted the attention of an 0b10 checkpoint 15000 | -5/Proximity Caves | Derelict sapper outpost attacked 15113 | -5/Proximity Caves | Learned Factory terminal intel 15118 | -5/Proximity Caves | Encountered a Derelict sapper outpost 15592 | -5/Proximity Caves | Entered Factory 15592 | -5/Factory | Evolved 2 slots: Power x1, Propulsion x1 15593 | -5/Factory | Identified exit to Upper Caves 15594 | -5/Factory | Identified exit to Factory 15595 | -5/Factory | Loaded intel: 220 non-interactive machine locations 15596 | -5/Factory | Loaded intel: 56 interactive machine locations 15597 | -5/Factory | Loaded intel: 28 terminal locations 15751 | -5/Factory | Incoming investigation squad redirected 15847 | -5/Factory | Repaired Broken Imp. KE Penetrator? 15889 | -5/Factory | Build established: Hacker-Mutant 15907 | -5/Factory | Destroyed 8 combat bots 16052 | -5/Factory | Fabricated P-70 Sage? 16061 | -5/Factory | Repaired Adv. Weight Redist. System 16105 | -5/Factory | Spotted B-75 Beast 16397 | -5/Factory | Incoming investigation squad redirected 16441 | -5/Factory | Fabricated Imp. VTOL Module (x1) 16456 | -5/Factory | Central database locked down 16893 | -5/Factory | Discovered exit to Factory (range 5) 17045 | -5/Factory | Identified Enh. Scrap Shield 17176 | -5/Factory | Build established: Hacker-Scout 17177 | -5/Factory | Discovered new exit (range 15) 17227 | -5/Factory | Repaired Dual-blade Saw 17234 | -5/Factory | Identified exit to Extension 17561 | -5/Factory | Discovered exit to Factory (range 16) 17599 | -5/Factory | Fabricated B-60 Warrior? 17872 | -5/Factory | Build established: Hacker-Sprinter 18014 | -5/Factory | Incoming investigation squad redirected 18036 | -5/Factory | Discovered exit to Extension (range 6) 18037 | -5/Factory | Entered Extension 18052 | -5/Extension | Rescued a captive Derelict 18052 | -5/Extension | Rescued a captive Derelict 18059 | -5/Extension | Rescued a captive Derelict 18092 | -5/Extension | Rescued a captive Derelict 18095 | -5/Extension | Rescued a captive Derelict 18241 | -5/Extension | Lost 3 parts (3n) 18266 | -5/Extension | Self-destructed Last Messages --------------- 18251_ The unstable cave ceiling collapses. 18251_ Acquired Unknown Processor. 18251_ Identified Armor Integrity Analyzer. 18252_ R-10 Processor suffers critical hit (Destroy). 18253_ Slug penetrates H-66 Slayer. 18253_ Slug penetrates Wall. 18254_ HV Slug penetrates H-66 Slayer. 18254_ H-66 Slayer suffers critical hit (Destroy). 18254_ H-66 Slayer destroyed. 18255_ Slug penetrates Wall. 18255_ Slug penetrates UF-U30(l). 18256_ HV Slug penetrates UF-U30(l). 18256_ UF-U30(l) destroyed. 18256_ Mic. Fission Core+ destroyed. 18258_ HV Slug penetrates H-66 Slayer. 18258_ H-66 Slayer suffers critical hit (Destroy). 18258_ H-66 Slayer destroyed. 18258_ Acquired Lgt. Angular Momentum Engine. 18260_ HV Slug penetrates Earth. 18261_ Slug penetrates Wall. Map ----- +----------------------------------------------------+ | | | | | | | | | | | | | | | | | | | | | | | | | | | | | | | | | | | ?????????????????????????#???### ###???????????? | | ?#????????#?????????????#????# # ##??????????? | | ??????#?????#???????########## # #??????????? | | ?#?????????????????## ###?????????? | | ##################### ! #?????????? | | T [% !g%[ % # #???????? | | * ]=^== #???????? | | = =% %=%%% % #???????#??? | | ############# """"""" /@##### %% #????????? | | ?????#?#????# """""""!* #???#####^%###"#?#?????? | | ??????#???#?# !!#???????# ######### | | ????????##### #?#?????# | | ??#?????# #???????# | | ????????###T# #""T""## ####?????#### | | ?#???????########"""""## T#??????????# | | ?????#???#?#????######## ##???#?????## | | ???????????????????????# #??##???????# | | ?????#?????????????????###??#????????# | | ?????#?????#??#???#?#????????????????######" ##### | | ????????#?#?????????#???????#??????????????"T#???? | | ????#????????????????????#??????????????????##???? | | ???????#?????????????????????#???????????????????? | | ?????#?#???????????#?????????????#???????????????? | | ???????????????????????????????#?#???????????????? | | ?????????????????????#??#????????????????????????? | | ?????????????????????????????#???????????????????? | | ?#??????????????????????????????#????????????????? | | ?????????????????????????????????????????????????? | | ?????????????????????????????????????????????????? | | ?????????????????????????????????????????????????? | | ?????????????????????????????????????????????????? | | ?????????????????????????????????????????????????? | | ?????????????????????????????????????????????????? | +----------------------------------------------------+ Best States ------------- Heat Dissipation 78 Energy Generation 29 Energy Capacity 300 Matter Stores 300 Matter Capacity 300 Sight Range 22 Robot Scan Range 16 Terrain Scan Range 20 Terrain Scan Density 210 Jamming Range 14 Power Amplification 20 Additional Mass Support 12 EM Shielding 3 Armor Coverage 300 Propulsion Shielding 33 Point Defense Rating 160 Phase Shifting 5 Evasion (%) 73 Launcher Accuracy 20 Armor Integrity Analysis 30 Recoil Reduction 2 Offensive Hacking 40 Authchip Count 1 Item Schematics ----------------- Imp. VTOL Module | -6/Factory | Scanalyzed Combat Drone Bay | -6/Data Miner | Free Lgt. Regenerative Plating | -6/Data Miner | Free Enh. Flexi-carbon Leg | -6/Data Miner | Free Exp. Heat Sink | -6/Data Miner | Free Enh. Coil Gun | -6/Data Miner | Free Imp. Linear Gravjet | -6/Data Miner | Free Imp. Force Booster | -6/Data Miner | Free Hvy. Gauss Cannon | -6/Data Miner | Free HERF Cannon | -6/Data Miner | Free Hvy. Phase Cannon | -6/Data Miner | Free Com. HERF Cannon | -6/Data Miner | Free Exp. Cooling System | -5/Factory | Scanalyzed Imp. KE Penetrator | -5/Factory | Scanalyzed CPS Tube | -5/Factory | Scanalyzed Enh. Force Lance | -5/Factory | Hacked Adv. Hacking Suite | -5/Factory | Scanalyzed Lrn. Missile Launcher | -5/Factory | Scanalyzed Adv. Cooling System | -5/Factory | Extracted Hcp. Storage Unit | -5/Factory | Extracted Thunder Leg | -5/Factory | Extracted Proton Cannon | -5/Factory | Extracted Maul | -5/Factory | Extracted Phase Cannon | -5/Factory | Extracted Lgt. Particle Reactor | -5/Extension | Hacked Robot Schematics ------------------ L-41 Fighter | -6/Data Miner | Free S-27 Virus | -6/Data Miner | Free M-22 Extractor | -6/Data Miner | Free B-60 Warrior | -6/Data Miner | Free R-10 Processor | -6/Data Miner | Free G-67 Veteran | -6/Data Miner | Free Fabricated ------------ L-41 Fighter | x3 | -6/Factory | Preloaded P-70 Sage | x2 | -5/Factory | Preloaded Imp. VTOL Module | x1 | -5/Factory | Authchip B-60 Warrior | x3 | -5/Factory | Preloaded Repaired ---------- Imp. KE Penetrator | 93% | -5/Factory | Broken Adv. Weight Redist. System | 50% | -5/Factory Dual-blade Saw | 50% | -5/Factory Studied --------- Mic. Fission Core | -5/Factory | Hacked Alien Tech Used ----------------- None Achievements -------------- None Challenges ------------ None Game ------ Seed DimensionalBattleMapper Manual? 0 Play Time 02:51:12 Cumulative 203.9 hours Start 2025.12.19 @ 08:47:00 End 2025.12.19 @ 14:00:14 Sessions 7 Manual Loads 0 Difficulty Rogue Special Mode None Game No. 279 Rogue 278 Adventurer 1 Explorer 0 Win Type - Total 2 Types 1/0/0/1/0/0/0/0/0/0 Lore% 66 Gallery% 62 Achievement% 55 Wizard Run 0 Options --------- Layout 0 ASCII 0 Keyboard 0 Movement Numpad Keybinds 0 Fullscreen 1 Font 24/Smallcaps Map View 76x50 Zoom Use 0% Tactical HUD 1 Map Filters NONE Filters NONE Steam 1 RUN: 2259f230-70f5-4456-9f8b-2aa8b3b710c3